bitfinex/quotes_ETHUSD_20230831
["timestamp","ask_amount","ask_price","bid_price","bid_amount"]
[1693470020170,17.55345,1709.1,1708.7,6.8694723]
[1693470020476,17.55345,1709.1,1708.7,5.85237]
[1693470021075,17.55345,1709.1,1708.7,6.85337]
[1693470021277,1.755345,1709.0,1708.7,6.85337]
[1693470021567,7.606895,1709.0,1708.7,6.85337]
[1693470023369,7.606895,1709.0,1708.7,5.85237]
[1693470023576,19.309995,1709.0,1708.5,7.02632964]
[1693470023933,19.309995,1709.0,1708.5,1.001]
[1693470024173,1.9309995,1708.9,1708.5,1.001]
[1693470024378,1.9309995,1708.9,1708.6,1.001]
[1693470024379,11.70424,1708.8,1708.6,1.001]
[1693470024863,13.6349595,1708.9,1708.6,1.001]
[1693470025260,13.6349595,1708.9,1708.6,6.85355]
[1693470026140,13.6349595,1708.9,1708.5,6.85388]
[1693470026345,7.21571595,1708.8,1708.5,6.85388]
[1693470030045,13.06793595,1708.8,1708.5,1.001]
[1693470030245,18.92015595,1708.8,1708.3,7.46785135]
[1693470030575,18.92015595,1708.8,1708.4,1.0172971]
[1693470030771,1.8920156,1708.7,1708.4,1.0172971]
[1693470030982,17.55822,1708.6,1708.4,1.0172971]
[1693470031153,11.70548,1708.6,1708.4,1.0172971]
[1693470032079,11.70548,1708.6,1708.3,0.61326135]
[1693470032400,5.85274,1708.6,1708.3,7.48434743]
[1693470032606,5.85274,1708.6,1708.4,1.01734608]
[1693470032815,7.99480156,1708.6,1708.4,1.01734608]
[1693470034219,13.84754156,1708.6,1708.4,1.01734608]
[1693470034430,13.84754156,1708.6,1708.3,0.61326135]
[1693470034642,13.23713467,1708.6,1708.3,1.63060644]
[1693470034983,13.23713467,1708.6,1708.3,8.48535644]
[1693470035179,11.09507311,1708.6,1708.4,1.01734509]
[1693470039627,11.09507311,1708.6,1708.4,1.63060644]
[1693470040735,5.24233311,1708.6,1708.4,1.63060644]
[1693470041040,5.24233311,1708.6,1708.5,1.01734802]
[1693470041487,5.24233311,1708.6,1708.4,1.62809867]
[1693470041682,5.85274,1708.6,1708.4,1.62809867]
[1693470044940,5.85274,1708.6,1708.4,2.62909867]
[1693470045135,5.85274,1708.6,1708.5,1.01734802]
[1693470053219,11.70511,1708.7,1708.5,2.01834802]
[1693470053417,5.85248,1708.7,1708.6,1.01733994]
[1693470055357,11.70504,1708.7,1708.6,1.01733994]
[1693470058223,11.70504,1708.7,1708.6,1.01736933]
[1693470061665,11.70504,1708.7,1708.6,1.62811998]
[1693470062320,11.70504,1708.7,1708.6,1.01736933]
[1693470062763,11.70504,1708.7,1708.6,1.62811998]
[1693470064650,6.31099729,1708.8,1708.6,1.62811998]
[1693470064963,5.85212,1708.8,1708.7,0.61075065]
[1693470065173,5.85212,1708.8,1708.7,1.62811998]
[1693470067666,5.85212,1708.8,1708.7,1.01736933]
[1693470067860,5.85212,1708.8,1708.7,1.62811998]
[1693470068667,5.85212,1708.8,1708.7,1.01736933]
[1693470068964,5.85212,1708.8,1708.7,1.62811998]
[1693470069467,5.85212,1708.8,1708.7,1.01736933]
[1693470070766,11.70434,1708.8,1708.7,1.01736933]
[1693470073792,11.70434,1708.8,1708.6,1.001]
[1693470075893,5.85212,1708.8,1708.6,1.001]
[1693470083782,11.70417,1708.8,1708.6,1.001]
[1693470089574,13.459761,1708.8,1708.4,6.46391065]
[1693470089781,13.459761,1708.8,1708.5,1.01731351]
[1693470090478,13.459761,1708.8,1708.4,6.85416]
[1693470090678,15.191861,1708.8,1708.5,1.01734479]
[1693470097987,15.191861,1708.8,1708.4,7.46491065]
[1693470097988,21.043911,1708.8,1708.3,7.46534065]
[1693470098183,21.043911,1708.8,1708.3,6.85475]
[1693470098184,2.1043911,1708.7,1708.3,6.85475]
[1693470098408,5.85281,1708.6,1708.3,6.85475]
[1693470104058,11.70562,1708.6,1708.3,6.85475]
[1693470104634,5.85281,1708.6,1708.3,6.85475]
[1693470105350,11.70555,1708.6,1708.3,1.001]
[1693470105722,5.85274,1708.6,1708.3,6.85471]
[1693470106024,11.70548,1708.6,1708.3,1.001]
[1693470106458,5.85274,1708.6,1708.3,6.85469]
[1693470106958,5.85274,1708.6,1708.3,1.001]
[1693470107152,5.85274,1708.6,1708.3,6.85474]
[1693470109058,11.70548,1708.6,1708.3,6.85474]
[1693470109755,11.70548,1708.6,1708.3,1.001]
[1693470109958,13.67172611,1708.6,1708.3,1.001]
[1693470110453,7.81898611,1708.6,1708.3,1.001]
[1693470110625,7.81898611,1708.6,1708.3,6.85462]
[1693470112052,7.81898611,1708.6,1708.3,6.85477]
[1693470112261,13.67172611,1708.6,1708.3,1.001]
[1693470116951,19.52446611,1708.6,1708.2,3.2626857]
[1693470117152,1.36717261,1708.5,1708.3,1.01740627]
[1693470117353,5.85343,1708.4,1708.3,1.01740627]
[1693470119380,13.07368261,1708.5,1708.3,1.01740627]
[1693470120291,13.07368261,1708.5,1708.2,2.6486]
[1693470120785,7.22042261,1708.5,1708.2,8.50266]
[1693470121485,13.07333261,1708.5,1708.2,8.50266]
[1693470122187,13.07333261,1708.5,1708.2,2.6486]
[1693470122773,13.07333261,1708.5,1708.2,1.001]
[1693470122951,1.30733326,1708.4,1708.2,1.001]
[1693470123273,5.85357,1708.4,1708.2,1.001]
[1693470127556,5.85357,1708.4,1708.0,3.5760857]
[1693470127557,11.707,1708.4,1708.0,3.5760857]
[1693470127866,11.70686,1708.4,1708.1,1.01749659]
[1693470128076,1.170686,1708.3,1708.1,1.01749659]
[1693470128276,5.85411,1708.2,1708.0,2.962]
[1693470128677,5.85411,1708.2,1708.0,1.001]
[1693470128987,11.70822,1708.2,1708.0,1.001]
[1693470129390,11.70822,1708.2,1707.9,0.6140857]
[1693470129582,11.70822,1708.2,1707.8,3.93182855]
[1693470129583,1.170822,1708.1,1707.8,3.6247857]
[1693470129778,5.8548,1708.0,1707.9,1.01763636]
[1693470129979,5.8548,1708.0,1707.8,3.0107]
[1693470130194,5.8548,1708.0,1707.8,1.001]
[1693470131005,11.7096,1708.0,1707.8,1.001]
[1693470131211,1.17096,1707.9,1707.8,1.001]
[1693470131525,5.8548,1708.0,1707.8,2.01866196]
[1693470131696,12.880062,1708.1,1707.8,6.85642]
[1693470131891,14.526662,1708.1,1707.8,1.001]
[1693470132623,20.381282,1708.1,1707.8,1.001]
[1693470133131,14.526662,1708.1,1707.8,1.001]
[1693470133313,1.4526662,1708.0,1707.8,1.001]
[1693470133627,7.3075262,1708.0,1707.8,1.001]
[1693470135092,13.1623862,1708.0,1707.8,1.001]
[1693470135607,7.3075262,1708.0,1707.8,1.001]
[1693470136023,7.3075262,1708.0,1707.7,12.81236]
[1693470136318,7.3075262,1708.0,1707.8,1.01769794]
[1693470138034,0.73075262,1707.9,1707.8,1.01769794]
[1693470140959,0.73075262,1707.9,1707.7,0.1]
[1693470143719,0.73075262,1707.9,1707.8,1.01772692]
[1693470144709,0.73075262,1707.9,1707.7,1.73181262]
[1693470144959,0.73075262,1707.9,1707.8,1.01772692]
[1693470147709,0.73075262,1707.9,1707.7,1.73181262]
[1693470147910,0.73075262,1707.9,1707.8,1.01772692]
[1693470150158,6.58589262,1707.9,1707.8,1.01772692]
[1693470150361,12.44103262,1707.9,1707.7,0.1]
[1693470150531,0.65858926,1707.8,1707.7,0.1]
[1693470150731,0.65858926,1707.8,1707.7,1.11773419]
[1693470150919,6.51406926,1707.8,1707.7,1.11773419]
[1693470151325,12.36954926,1707.8,1707.7,1.11773419]
[1693470151810,6.51406926,1707.8,1707.7,0.1]
[1693470157537,12.36954926,1707.8,1707.7,0.1]
[1693470157757,6.51406926,1707.8,1707.7,0.1]
[1693470160561,6.51406926,1707.8,1707.7,1.11783205]
[1693470163979,12.36954926,1707.8,1707.7,1.11783205]
[1693470164178,6.51406926,1707.8,1707.7,1.11783205]
[1693470169895,21.09850991,1707.8,1707.7,0.1]
[1693470170097,15.24302991,1707.8,1707.7,0.1]
[1693470170959,21.09850991,1707.8,1707.7,0.1]
[1693470171501,15.24302991,1707.8,1707.7,0.1]
[1693470172671,15.24302991,1707.8,1707.7,0.0692]
[1693470173056,21.09850991,1707.8,1707.7,0.0692]
[1693470175857,15.24302991,1707.8,1707.7,0.0692]
[1693470176789,21.09850991,1707.8,1707.7,0.0692]
[1693470177520,12.36954926,1707.8,1707.7,0.0692]
[1693470179970,18.22502926,1707.8,1707.7,0.0692]
[1693470180172,12.36954926,1707.8,1707.7,0.0692]
[1693470194731,18.22502926,1707.8,1707.7,0.0692]
[1693470195112,12.36954926,1707.8,1707.7,0.0692]
[1693470246528,18.22502926,1707.8,1707.7,0.0692]
[1693470256439,21.09850991,1707.8,1707.7,0.0692]
[1693470267484,12.36954926,1707.8,1707.7,0.0692]
[1693470268263,18.22502926,1707.8,1707.7,0.0692]
[1693470283138,12.36954926,1707.8,1707.7,0.0692]
[1693470287146,18.22502926,1707.8,1707.7,0.0692]
[1693470292674,11.71096,1707.8,1707.7,0.0692]
[1693470292847,5.85548,1707.8,1707.7,0.0692]
[1693470296478,5.85514,1707.9,1707.7,0.0692]
[1693470296637,13.24787373,1708.1,1707.7,5.92502]
[1693470296841,11.70934,1708.1,1707.8,1.001]
[1693470297036,11.70934,1708.1,1707.9,1.001]
[1693470300172,5.85465,1708.1,1707.9,1.001]
[1693470300371,5.85422,1708.2,1708.0,1.001]
[1693470300677,11.70855,1708.2,1708.0,1.001]
[1693470303365,11.70855,1708.2,1708.0,1.849112]
[1693470304107,5.85388,1708.3,1708.1,1.001]
[1693470306699,5.85379,1708.3,1708.1,1.001]
[1693470307205,5.85379,1708.3,1708.0,13.558362]
[1693470307912,5.85379,1708.3,1708.0,7.703732]
[1693470308197,5.85379,1708.3,1708.1,0.7703732]
[1693470310903,11.70758,1708.3,1708.1,0.7703732]
[1693470315185,11.70758,1708.3,1708.0,9.356532]
[1693470318852,5.85379,1708.3,1708.0,9.356532]
[1693470320956,11.70758,1708.3,1708.0,9.356532]
[1693470324755,11.70758,1708.3,1708.1,1.001]
[1693470325562,11.70758,1708.3,1708.0,8.50842]
[1693470335714,11.70758,1708.3,1708.0,2.6538]
[1693470338208,17.56137,1708.3,1708.0,2.6538]
[1693470340822,17.56137,1708.3,1708.0,1.001]
[1693470341623,20.264917,1708.3,1707.9,8.38174]
[1693470341796,21.942717,1708.3,1707.9,8.38174]
[1693470342893,21.942717,1708.3,1707.7,7.30767692]
[1693470342894,21.942717,1708.3,1707.7,1.68327471]
[1693470343097,21.942717,1708.3,1707.7,0.0692]
[1693470343098,33.2046268,1708.3,1707.7,0.0692]
[1693470343799,17.56386,1708.1,1707.7,0.0692]
[1693470344141,11.71028,1707.9,1707.7,0.0692]
[1693470346439,17.56542,1707.9,1707.7,0.0692]
[1693470356984,20.43890065,1707.9,1707.7,0.0692]
[1693470361147,14.58376065,1707.9,1707.7,0.0692]
[1693470362148,20.43890065,1707.9,1707.7,0.0692]
[1693470362370,19.61033007,1707.8,1707.7,0.0692]
[1693470384414,20.08484711,1707.8,1707.7,0.0692]
[1693470386538,19.61033007,1707.8,1707.7,0.0692]
[1693470398714,20.08831793,1707.8,1707.7,0.0692]
[1693470400446,19.61033007,1707.8,1707.7,0.0692]
[1693470420132,17.56644,1707.8,1707.7,0.0692]
[1693470458746,20.10625805,1707.8,1707.7,0.0692]
[1693470458945,20.10627462,1707.8,1707.7,0.0692]
[1693470465702,18.56744,1707.8,1707.7,0.0692]
[1693470471232,19.02548211,1707.8,1707.7,0.0692]
[1693470471529,21.66742778,1707.8,1707.7,0.0692]
[1693470474828,20.66642778,1707.8,1707.7,0.0692]
[1693470480432,23.53990843,1707.8,1707.7,0.0692]
[1693470482431,24.54090843,1707.8,1707.7,0.0692]
[1693470493655,26.07974305,1707.8,1707.7,0.0692]
[1693470494055,25.07874305,1707.8,1707.7,0.0692]
[1693470494362,20.89796276,1707.8,1707.7,0.0692]
[1693470497556,22.43679738,1707.8,1707.7,0.0692]
[1693470498273,20.89796276,1707.8,1707.7,0.0692]
[1693470498578,22.43679738,1707.8,1707.7,0.0692]
[1693470523507,20.89796276,1707.8,1707.7,0.0692]
[1693470523701,23.85801008,1707.8,1707.7,0.0692]
[1693470535332,20.89796276,1707.8,1707.7,0.0692]
[1693470570499,29.75344276,1707.8,1707.7,0.0692]
[1693470572403,32.6011752,1707.8,1707.6,0.1]
[1693470572607,6.87448065,1707.7,1707.6,0.1]
[1693470572900,26.28867309,1707.7,1707.4,0.1]
[1693470573057,23.42604,1707.5,1707.4,0.1]
[1693470575470,24.96515356,1707.5,1707.4,0.1]
[1693470576705,27.83863421,1707.5,1707.4,0.1]
[1693470577375,26.29952065,1707.5,1707.4,0.1]
[1693470580316,23.42604,1707.5,1707.4,0.1]
[1693470581408,26.28554209,1707.5,1707.4,0.1]
[1693470584214,26.76567344,1707.5,1707.4,0.1]
[1693470597435,23.90617135,1707.5,1707.4,0.1]
[1693470598953,11.71302,1707.5,1707.4,0.1]
[1693470599153,11.71302,1707.5,1707.4,0.58]
[1693470599154,5.85651,1707.5,1707.4,0.58]
[1693470599359,5.85591,1707.7,1707.4,12.2937]
[1693470599360,5.85583,1707.7,1707.4,12.2937]
[1693470599536,11.71166,1707.7,1707.5,1.70937]
[1693470600021,5.85583,1707.7,1707.5,7.56586]
[1693470600229,5.85563,1707.8,1707.5,7.56586]
[1693470600536,5.85563,1707.8,1707.6,1.001]
[1693470600537,11.71126,1707.8,1707.6,1.001]
[1693470601053,11.71126,1707.8,1707.7,0.48]
[1693470617171,11.71126,1707.8,1707.6,0.48]
[1693470617538,17.56689,1707.8,1707.4,2.0018]
[1693470617747,19.909102,1707.8,1707.4,2.0018]
[1693470618658,21.562302,1707.8,1707.4,2.0018]
[1693470619027,21.562302,1707.8,1707.5,0.48]
[1693470649714,17.56689,1707.8,1707.5,0.48]
[1693470693149,19.1019298,1707.8,1707.5,0.48]
[1693470713888,21.97541045,1707.8,1707.5,0.48]
[1693470714192,1.5350398,1707.7,1707.4,0.1]
[1693470714360,17.56851,1707.6,1707.4,0.1]
[1693470714548,19.326381,1707.5,1707.4,0.1]
[1693470719791,20.327381,1707.5,1707.4,0.1]
[1693470720084,20.327381,1707.5,1707.0,0.1]
[1693470720085,33.59241145,1707.5,1707.0,0.1]
[1693470720267,23.42903,1707.3,1707.0,0.1]
[1693470720469,11.71576,1707.1,1707.0,0.1]
[1693470721373,5.85737,1707.3,1707.0,13.29746]
[1693470721697,11.71423,1707.4,1707.1,13.19675]
[1693470721907,11.71423,1707.4,1707.1,7.92474702]
[1693470722700,11.71423,1707.4,1707.1,6.33787]
[1693470723000,17.57139,1707.4,1707.1,6.33787]
[1693470723934,19.914185,1707.4,1707.1,0.48]
[1693470725496,17.57139,1707.4,1707.1,0.48]
[1693470732153,5.85711,1707.4,1707.1,12.19569]
[1693470732301,5.8566,1707.5,1707.2,1.001]
[1693470732508,11.71274,1707.6,1707.3,7.3382]
[1693470732864,11.71274,1707.6,1707.3,9.24348]
[1693470753866,11.71274,1707.6,1707.3,8.24248]
[1693470757460,13.42124,1707.6,1707.3,6.3372]
[1693470777788,13.42124,1707.6,1707.3,0.48]
[1693470777995,19.27773,1707.6,1707.3,0.48]
[1693470778190,19.27773,1707.6,1707.1,13.25067005]
[1693470778191,19.27773,1707.6,1707.2,0.48]
[1693470778492,21.14063,1707.6,1707.2,2.11213401]
[1693470778691,5.85685,1707.4,1707.3,1.01808999]
[1693470778895,5.85685,1707.4,1707.3,1.49808999]
[1693470780871,5.85685,1707.4,1707.3,1.4980893]
[1693470792239,5.85685,1707.4,1707.3,0.48]
[1693470792732,9.723783,1707.5,1707.3,6.3372]
[1693470792733,5.85672,1707.5,1707.3,6.3372]
[1693470792895,11.71263,1707.6,1707.4,0.48]
[1693470797993,1.7412,1707.7,1707.4,6.33683]
[1693470798324,11.71187,1707.7,1707.4,13.19468]
[1693470798530,11.71187,1707.7,1707.4,15.264806]
[1693470799025,11.71187,1707.7,1707.4,9.407956]
[1693470799224,11.71187,1707.7,1707.4,8.406956]
[1693470804537,9.08923434,1707.8,1707.4,15.264806]
[1693470804705,5.85566,1707.8,1707.6,1.001]
[1693470804909,5.85566,1707.8,1707.7,0.48]
[1693470805737,11.71047,1707.9,1707.7,0.48]
[1693470817962,11.71047,1707.9,1707.7,6.33579]
[1693470818163,11.71047,1707.9,1707.7,0.48]
[1693470830841,13.64429,1707.9,1707.7,0.48]
[1693470832903,19.49975,1707.9,1707.7,0.48]
[1693470833060,19.49975,1707.9,1707.6,0.48]
[1693470847171,19.97036858,1707.9,1707.6,0.48]
[1693470848299,19.49975,1707.9,1707.6,0.48]
[1693470848500,11.71047,1707.9,1707.6,6.33613]
[1693470848682,5.85515,1707.9,1707.6,12.1923]
[1693470854506,7.39081085,1708.0,1707.6,12.1923]
[1693470854699,5.85517,1707.9,1707.6,12.1923]
[1693470854904,5.85517,1707.9,1707.6,14.253331]
[1693470857089,11.71034,1707.9,1707.6,14.253331]
[1693470860377,11.71034,1707.9,1707.6,12.1923]
[1693470871545,19.10146085,1707.9,1707.6,0.48]
[1693470875083,19.10146085,1707.9,1707.5,5.85631]
[1693470877122,20.70706085,1707.9,1707.5,5.85631]
[1693470883229,21.17200424,1707.9,1707.5,5.85631]
[1693470883521,23.38930466,1707.9,1707.5,5.85631]
[1693470884716,21.78370466,1707.9,1707.5,5.85631]
[1693470885234,23.43240466,1707.9,1707.5,5.85631]
[1693470890447,21.89645381,1707.9,1707.5,5.85631]
[1693470894351,20.24775381,1707.9,1707.5,5.85631]
[1693470897545,20.24775381,1707.9,1707.6,0.48]
[1693470897546,12.17528339,1707.9,1707.6,0.48]
[1693470897764,12.17528339,1707.9,1707.6,6.33605]
[1693470903168,13.71358036,1707.9,1707.6,6.33605]
[1693470905669,13.71358036,1707.9,1707.4,6.85779]
[1693470905670,2.87348065,1707.8,1707.4,5.85663]
[1693470905975,11.71172,1707.7,1707.4,5.85677]
[1693470906266,13.75579307,1707.7,1707.4,5.85677]
[1693470906667,19.61168307,1707.7,1707.3,5.85704]
[1693470906846,19.61168307,1707.7,1707.3,11.714]
[1693470907053,15.51379307,1707.7,1707.4,0.48]
[1693470907349,15.51379307,1707.7,1707.4,6.3368]
[1693470909080,21.36962307,1707.7,1707.4,0.48]
[1693470909284,7.99342231,1707.6,1707.4,0.48]
[1693470909576,11.71292,1707.6,1707.4,0.48]
[1693470928053,17.56938,1707.6,1707.2,2.5497512]
[1693470928267,17.56938,1707.6,1707.3,0.48]
[1693470928543,17.56938,1707.6,1707.2,0.48]
[1693470928711,17.57076,1707.4,1707.1,0.48]
[1693470928896,17.57076,1707.4,1707.1,2.0359]
[1693470930153,17.57076,1707.4,1707.0,1.9904]
[1693470930154,20.44424065,1707.4,1707.0,1.9904]
[1693470930396,20.44424065,1707.4,1706.9,1.52738303]
[1693470930531,20.44424065,1707.4,1706.9,7.4522]
[1693470930532,2.04442407,1707.3,1706.9,7.4522]
[1693470930885,11.71522,1707.2,1706.9,7.4522]
[1693470931734,11.71522,1707.2,1707.0,0.48]
[1693470932238,0.46782297,1707.1,1707.0,0.48]
[1693470932444,6.32570297,1707.1,1707.0,0.48]
[1693470933440,0.46782297,1707.1,1707.0,6.33823]
[1693470933640,6.32570297,1707.1,1707.0,0.48]
[1693470933868,6.32570297,1707.1,1707.0,6.33823]
[1693470934091,6.32570297,1707.1,1707.0,0.48]
[1693470937713,6.32570297,1707.1,1706.9,7.45209]
[1693470937916,6.32570297,1707.1,1706.9,5.85839]
[1693470948092,6.32570297,1707.1,1706.8,9.44042]
[1693470948292,6.32570297,1707.1,1706.9,6.33856]
[1693470948921,12.18358297,1707.1,1706.9,0.48]
[1693470960026,0.46782297,1707.1,1706.9,6.33855]
[1693470960228,0.46782297,1707.1,1707.0,2.01920884]
[1693470960463,0.46782297,1707.1,1707.0,21.07489884]
[1693470960630,0.46782297,1707.1,1707.0,23.94837949]
[1693470960800,5.85667,1707.5,1707.0,23.94837949]
[1693470961001,5.85667,1707.5,1707.2,1.001]
[1693470961206,5.85667,1707.5,1707.3,0.48]
[1693470961403,5.85667,1707.5,1707.3,6.33717]
[1693470961799,5.85663,1707.5,1707.3,7.656708]
[1693470961997,5.85634,1707.6,1707.3,7.656708]
[1693470962228,11.71268,1707.6,1707.3,7.656708]
[1693470962720,0.42925382,1707.5,1707.3,7.656708]
[1693470962915,6.28583382,1707.5,1707.3,7.656708]
[1693470963328,12.14241382,1707.5,1707.3,0.48]
[1693470963710,17.99899382,1707.5,1707.3,0.48]
[1693470963911,17.99899382,1707.5,1707.2,0.48]
[1693470964233,17.99899382,1707.5,1707.2,6.3375]
[1693470964652,12.14241382,1707.5,1707.2,6.3375]
[1693470964933,12.14241382,1707.5,1707.3,0.63375]
[1693470965116,12.14241382,1707.5,1707.2,13.196]
[1693470975259,13.80041382,1707.5,1707.2,13.196]
[1693470985070,13.80041382,1707.5,1707.2,12.195]
[1693470987588,6.28583382,1707.5,1707.2,12.195]
[1693470987882,0.42925382,1707.5,1707.3,12.715]
[1693470988082,0.42925382,1707.5,1707.4,1.7515]
[1693470988277,0.42925382,1707.5,1707.4,0.48]
[1693470989761,0.42925382,1707.5,1707.4,6.33685]
[1693470990879,0.42925382,1707.5,1707.4,0.48]
[1693470998490,0.42925382,1707.5,1707.4,7.33785]
[1693471002299,0.42925382,1707.5,1707.4,6.33685]
[1693471007400,0.31362264,1707.5,1707.4,6.33685]
[1693471008306,0.31362264,1707.5,1707.4,7.656321]
[1693471009005,0.31362264,1707.5,1707.4,8.657321]
[1693471010171,0.31362264,1707.5,1707.4,7.656321]
[1693471014411,0.31362264,1707.5,1707.4,6.33685]
[1693471020683,0.31362264,1707.5,1707.4,0.48]
[1693471020907,6.17013264,1707.5,1707.4,0.48]
[1693471046675,0.31362264,1707.5,1707.4,0.48]
[1693471047577,0.31362264,1707.5,1707.4,6.33685]
[1693471070429,6.17013264,1707.5,1707.4,6.33685]
[1693471075839,0.31362264,1707.5,1707.4,6.33685]
[1693471086466,6.17013264,1707.5,1707.4,6.33685]
[1693471087468,6.17013264,1707.5,1707.4,0.48]
[1693471088264,0.31362264,1707.5,1707.4,6.33685]
[1693471088425,0.31362264,1707.5,1707.4,7.656321]
[1693471091443,0.31362264,1707.5,1707.4,6.33685]
[1693471101216,6.17013264,1707.5,1707.4,0.48]
[1693471120165,0.31362264,1707.5,1707.4,0.48]
[1693471130483,6.17013264,1707.5,1707.4,0.48]
[1693471130646,6.17013264,1707.5,1707.2,6.47170648]
[1693471130991,7.5364059,1707.5,1707.3,1.01807454]
[1693471132048,7.5364059,1707.5,1707.3,6.87526454]
[1693471132287,7.5364059,1707.5,1707.4,0.48]
[1693471132469,6.17013264,1707.5,1707.4,0.48]
[1693471155734,6.17013264,1707.5,1707.3,0.48]
[1693471156119,12.02664264,1707.5,1707.3,0.48]
[1693471158540,17.88315264,1707.5,1707.1,1.5358912]
[1693471158702,17.88315264,1707.5,1707.2,1.01811981]
[1693471158912,1.78831526,1707.4,1707.1,0.61435648]
[1693471159126,11.7144,1707.3,1707.1,1.63247906]
[1693471159327,12.02439416,1707.3,1707.1,1.63247906]
[1693471159653,6.16719416,1707.3,1707.1,1.63247906]
[1693471159799,6.16719416,1707.3,1707.2,1.01812258]
[1693471159998,6.16719416,1707.3,1707.2,0.48]
[1693471160230,6.16719416,1707.3,1707.2,1.49812258]
[1693471165639,6.16719416,1707.3,1707.2,0.48]
[1693471197305,6.16719416,1707.3,1707.2,1.49813615]
[1693471197505,6.16719416,1707.3,1707.2,0.48]
[1693471197712,6.16719416,1707.3,1707.2,1.4981378]
[1693471199200,6.16719416,1707.3,1707.2,0.48]
[1693471199399,6.16719416,1707.3,1707.2,1.49813989]
[1693471200320,8.13140658,1707.3,1707.2,1.49813989]
[1693471200693,8.13140658,1707.3,1707.2,0.48]
[1693471200885,8.13140658,1707.3,1707.1,0.48]
[1693471201085,6.16719416,1707.3,1707.1,0.48]
[1693471201742,17.88159416,1707.3,1707.0,0.61435648]
[1693471201896,19.62749416,1707.3,1706.9,0.61435648]
[1693471202088,19.62749416,1707.3,1706.9,7.49114044]
[1693471202290,19.62749416,1707.3,1707.0,1.01823396]
[1693471202291,5.85788,1707.1,1707.0,1.01823396]
[1693471202903,6.14571083,1707.1,1707.0,1.01823396]
[1693471204217,0.28783083,1707.1,1707.0,1.01823396]
[1693471204538,0.28783083,1707.1,1707.0,1.49823396]
[1693471204740,0.28783083,1707.1,1707.0,7.35646396]
[1693471204949,11.71471,1707.3,1707.0,9.325214]
[1693471205159,11.71471,1707.3,1707.1,0.48]
[1693471205322,13.38101,1707.3,1707.1,0.48]
[1693471214352,11.71471,1707.3,1707.1,0.48]
[1693471217860,0.3085044,1707.2,1707.1,0.48]
[1693471218020,6.1660444,1707.2,1707.1,0.48]
[1693471219562,6.1660444,1707.2,1707.1,1.481]
[1693471220261,6.1660444,1707.2,1707.1,2.372781]
[1693471221657,6.1660444,1707.2,1707.1,1.371781]
[1693471224259,6.1660444,1707.2,1707.1,0.48]
[1693471227066,6.1660444,1707.2,1707.1,1.49816778]
[1693471229179,6.1660444,1707.2,1707.1,2.49916778]
[1693471232624,6.40765434,1707.2,1707.1,2.49916778]
[1693471248468,0.55011434,1707.2,1707.1,2.49916778]
[1693471248764,0.55011434,1707.2,1707.1,15.72644669]
[1693471249066,0.55011434,1707.2,1707.1,18.59992734]
[1693471249432,5.8569,1707.4,1707.1,18.59992734]
[1693471249764,5.8569,1707.4,1707.2,6.87558778]
[1693471249975,5.8569,1707.4,1707.3,0.48]
[1693471250140,5.8569,1707.4,1707.3,1.113742]
[1693471252030,5.8569,1707.4,1707.3,2.114742]
[1693471255388,5.8569,1707.4,1707.3,1.113742]
[1693471255688,5.8569,1707.4,1707.3,0.48]
[1693471262816,6.40676738,1707.4,1707.3,0.48]
[1693471302678,6.40676738,1707.4,1707.3,1.49808637]
[1693471326198,12.26373738,1707.4,1707.3,0.48]
[1693471326399,12.26373738,1707.4,1707.2,0.48]
[1693471326595,1.22637374,1707.3,1707.2,0.48]
[1693471326800,5.8572,1707.3,1707.2,1.49810704]
[1693471327125,6.40372409,1707.3,1707.2,1.49810704]
[1693471329385,6.40372409,1707.3,1707.2,0.48]
[1693471332104,18.11812409,1707.3,1707.0,0.61505758]
[1693471332422,18.11812409,1707.3,1706.9,6.47358758]
[1693471332722,5.85788,1707.1,1707.0,1.01823185]
[1693471333419,5.85788,1707.1,1706.9,5.85852]
[1693471333627,5.85788,1707.1,1707.0,1.01823178]
[1693471333998,15.17949241,1707.2,1707.0,1.01823178]
[1693471333999,1.6521,1707.2,1707.0,1.01823178]
[1693471334203,14.16766409,1707.3,1707.0,12.73469178]
[1693471334406,14.16766409,1707.3,1707.1,0.48]
[1693471334597,16.1701195,1707.3,1707.1,0.48]
[1693471334925,13.71709541,1707.3,1707.1,0.48]
[1693471335130,0.54690044,1707.2,1707.1,0.48]
[1693471335307,6.40444044,1707.2,1707.1,0.48]
[1693471338938,6.40444044,1707.2,1707.0,0.48]
[1693471338939,12.26198044,1707.2,1707.0,0.48]
[1693471339230,15.16964548,1707.2,1707.0,0.48]
[1693471343103,13.94348044,1707.2,1707.0,0.48]
[1693471344413,13.94348044,1707.2,1707.0,6.3382]
[1693471351289,12.26198044,1707.2,1707.0,6.3382]
[1693471359151,12.26198044,1707.2,1707.0,0.48]
[1693471359552,12.26198044,1707.2,1706.9,0.48]
[1693471359863,12.26198044,1707.2,1706.9,6.33853]
[1693471360199,13.91258044,1707.2,1706.9,6.33853]
[1693471367450,13.54482714,1707.2,1706.9,6.33853]
[1693471367732,15.25252714,1707.2,1706.9,6.33853]
[1693471369268,21.11006714,1707.2,1706.9,6.33853]
[1693471369750,21.11006714,1707.2,1706.9,0.48]
[1693471370270,21.11006714,1707.2,1706.9,6.33851]
[1693471371454,2.11100671,1707.1,1706.9,0.48]
[1693471371602,11.71646,1707.0,1706.9,0.48]
[1693471371806,5.85823,1707.0,1706.9,1.49825218]
[1693471372046,6.46784329,1707.0,1706.9,1.49825218]
[1693471374624,6.46784329,1707.0,1706.9,7.40915645]
[1693471375514,6.46784329,1707.0,1706.9,1.49825218]
[1693471377442,6.46784329,1707.0,1706.9,2.11279563]
[1693471386805,6.46784329,1707.0,1706.9,1.49825218]
[1693471393140,20.37400129,1707.0,1706.9,0.48]